[Event "WSTCC-50 2024"]
[Site "Krakow"]
[Date "2024.07.06"]
[Round "5.16"]
[White "Kantorik, Marian"]
[Black "Linik, Yaron"]
[Result "1/2-1/2"]
[ECO "B08"]
[WhiteElo "2198"]
[BlackElo "1910"]
[Annotator "RC"]
[PlyCount "137"]
[EventDate "2024.07.01"]
[EventType "team-tourn"]
[EventCountry "POL"]
[SourceTitle "playchess.com"]
[Source "ChessBase"]
[SourceQuality "1"]
[TimeControl "40/5400+30:1800+30"]

1. d4 {[%emt 0:00:06]} Nf6 {[%emt 0:00:14]} 2. Nf3 {[%emt 0:00:18]} g6 {[%emt 0:00:40]} 3. Nc3 {[%emt 0:00:07]} Bg7 {[%emt 0:00:46]} 4. e4 {[%emt 0:00:49]} d6 {[%emt 0:01:42]} 5. Be2 {[%emt 0:05:36]} O-O {[%emt 0:04:24]} 6. h3 {[%emt 0:00:58]} c6 {[%emt 0:03:40]} 7. Be3 {[%emt 0:00:20]} b5 {[%emt 0:05:20]} 8. e5 {[%emt 0:00:43]} dxe5 {[%emt 0:04:56]} 9. dxe5 {[%emt 0:00:09]} Nd5 {[%emt 0:02:24]} 10. Nxd5 {[%emt 0:00:10]} cxd5 {[%emt 0:00:05]} 11. O-O {[%emt 0:00:23]} Nc6 {[%emt 0:08:50]} 12. Bxb5 {[%emt 0:06:17]} Nxe5 {[%emt 0:01:48]} 13. Nxe5 {[%emt 0:01:15]} Bxe5 {[%emt 0:00:10]} 14. Bh6 {[%emt 0:00:19]} Bxb2 {[%emt 0:03:18]} 15. Rb1 {[%emt 0:33:59]} Bg7 {[%emt 0:05:01]} 16. Bxg7 {[%emt 0:01:40]} Kxg7 {[%emt 0:00:13]} 17. Bc6 {[%emt 0:00:10]} Ba6 {[%emt 0:00:18]} 18. Bxa8 {[%emt 0:04:36]} Bxf1 {[%emt 0:01:56]} 19. Bxd5 {[%emt 0:00:51]} Ba6 {[%emt 0:06:26]} 20. Qd4+ {[%emt 0:12:39]} Kg8 {[%emt 0:15:29]} 21. Qxa7 {[%emt 0:02:59]} Qxd5 {[%emt 0:00:14]} 22. Qxa6 {[%emt 0:00:07]} Ra8 {[%emt 0:00:19]} 23. Qe2 {[%emt 0:00:46]} Qxa2 {[%emt 0:04:02]} 24. Rb7 {[%emt 0:01:52]} Ra7 {[%emt 0:02:38]} 25. Rb8+ {[%emt 0:02:09]} Kg7 {[%emt 0:00:10]} 26. Qe5+ {[%emt 0:01:51]} f6 {[%emt 0:00:10]} 27. Qc5 {[%emt 0:00:19]} Qa1+ {[%emt 0:07:43]} 28. Kh2 {[%emt 0:00:30]} Qe5+ {[%emt 0:00:29]} 29. Qxe5 {[%emt 0:00:07]} fxe5 {[%emt 0:00:01]} 30. Rc8 {[%emt 0:00:52]} Kf6 {[%emt 0:01:28]} 31. Kg3 {[%emt 0:04:36]} h5 {[%emt 0:01:50]} 32. Kf3 {[%emt 0:01:51]} Ke6 {[%emt 0:03:58]} 33. h4 {[%emt 0:01:06]} Ra3+ {[%emt 0:00:49]} 34. Ke2 {[%emt 0:03:04]} Kd5 {[%emt 0:04:25]} 35. Rg8 {[%emt 0:05:10]} Rc3 {[%emt 0:04:16]} 36. Kd2 {[%emt 0:00:34]} Rc6 {[%emt 0:00:13]} 37. Rg7 {[%emt 0:00:52]} Rf6 {[%emt 0:01:16]} 38. f3 {[%emt 0:03:53]} Re6 {[%emt 0:04:21]} 39. Ke3 {[%emt 0:02:41]} e4 {[%emt 0:02:02]} 40. c4+ {[%emt 0:01:05]} Kxc4 {[%emt 0:01:37]} 41. fxe4 {[%emt 0:30:06]} Kc5 {[%emt 0:02:27]} 42. Rg8 {[%emt 0:00:00]} Rf6 {[%emt 0:08:57]} 43. Rd8 {[%emt 0:00:00]} e6 {[%emt 0:12:06]} 44. g3 {[%emt 0:00:00]} Kc6 {[%emt 0:00:33]} 45. e5 {[%emt 0:00:00]} Rf1 {[%emt 0:05:10]} 46. Rd6+ {[%emt 0:00:00]} Kc5 {[%emt 0:02:02]} 47. Rxe6 {[%emt 0:00:00]} Kd5 {[%emt 0:00:23]} 48. Rxg6 {[%emt 0:00:00]} Kxe5 {[%emt 0:00:34]} 49. Rh6 {[%emt 0:00:00]} Rf5 {[%emt 0:01:18]} 50. Ra6 {[%emt 0:00:00]} Kd5 {[%emt 0:00:22]} 51. Rh6 {[%emt 0:00:00]} Ke5 {[%emt 0:00:10]} 52. Rh8 {[%emt 0:00:00]} Kd5 {[%emt 0:01:05]} 53. Rc8 {[%emt 0:00:00]} Ke5 {[%emt 0:00:44]} 54. Rd8 {[%emt 0:00:06]} Ke6 {[%emt 0:00:30]} 55. Ke4 {[%emt 0:01:10]} Re5+ {[%emt 0:00:37]} 56. Kd4 {[%emt 0:00:06]} Rf5 {[%emt 0:00:15]} 57. Re8+ {[%emt 0:01:48]} Kf6 {[%emt 0:00:34]} 58. Ke4 {[%emt 0:00:23]} Ra5 {[%emt 0:00:12]} 59. Rf8+ {[%emt 0:00:55]} Ke6 {[%emt 0:00:21]} 60. Kf4 {[%emt 0:00:33]} Rd5 {[%emt 0:01:46]} 61. Rg8 {[%emt 0:03:30]} Rf5+ {[%emt 0:00:26]} 62. Ke4 {[%emt 0:00:11]} Re5+ {[%emt 0:00:06]} 63. Kd4 {[%emt 0:00:04]} Rd5+ {[%emt 0:00:06]} 64. Kc4 {[%emt 0:00:14]} Rf5 {[%emt 0:00:14]} 65. Rg6+ {[%emt 0:00:25]} Kf7 {[%emt 0:00:24]} 66. Rd6 {[%emt 0:00:56]} Rf3 {[%emt 0:01:02]} 67. Rd3 {[%emt 0:00:27]} Rxd3 68. Kxd3 {[%emt 0:00:05]} Kf6 {[%emt 0:00:29]} 69. Ke4 1/2-1/2

[Event "WSTCC-50 2024"]
[Site "Krakow"]
[Date "2024.07.06"]
[Round "5.16"]
[White "Johnsen, Sylvia"]
[Black "Zielinski, Olgierd"]
[Result "0-1"]
[ECO "B26"]
[WhiteElo "1878"]
[BlackElo "1913"]
[Annotator "NA RC"]
[PlyCount "136"]
[EventDate "2024.07.01"]
[EventType "team-tourn"]
[EventCountry "POL"]
[SourceTitle "playchess.com"]
[Source "ChessBase"]
[SourceQuality "1"]
[TimeControl "40/5400+30:1800+30"]

1. e4 {[%emt 0:00:03]} c5 {[%emt 0:00:08]} 2. Nc3 {[%emt 0:00:08]} Nc6 {[%emt 0:00:10]} 3. g3 {[%emt 0:00:09]} g6 {[%emt 0:00:10]} 4. Bg2 {[%emt 0:00:09]} Bg7 {[%emt 0:00:10]} 5. d3 {[%emt 0:00:10]} d6 {[%emt 0:00:09]} 6. Be3 {[%emt 0:00:20]} Nf6 {[%emt 0:00:22]} 7. h3 {[%emt 0:00:13]} Rb8 {[%emt 0:02:16]} 8. Qd2 {[%emt 0:00:47]} h6 {[%emt 0:00:14]} 9. Nge2 {[%emt 0:02:15]} b5 {[%emt 0:00:07]} 10. f4 {[%emt 0:02:03]} e5 {[%emt 0:01:29]} 11. f5 {[%emt 0:00:43]} g5 {[%emt 0:07:48]} 12. g4 {[%emt 0:05:35]} Nd4 {[%emt 0:08:14]} 13. Ng3 {[%emt 0:04:40]} b4 {[%emt 0:04:28]} 14. Nd5 {[%emt 0:03:37]} Bb7 {[%emt 0:01:02]} 15. c3 {[%emt 0:03:12]} Bxd5 {[%emt 0:03:17]} 16. exd5 {[%emt 0:00:49]} bxc3 {[%emt 0:00:14]} 17. bxc3 {[%emt 0:00:19]} Nb5 {[%emt 0:00:18]} 18. O-O {[%emt 0:04:08]} Qa5 {[%emt 0:00:49]} 19. Rab1 {[%emt 0:08:35]} Ke7 {[%emt 0:00:50]} 20. Rb3 {[%emt 0:04:22]} Nc7 {[%emt 0:00:31]} 21. Rfb1 {[%emt 0:04:18]} Rb6 {[%emt 0:01:14]} 22. Rxb6 {[%emt 0:15:29]} axb6 {[%emt 0:00:21]} 23. c4 {[%emt 0:02:20]} Qxd2 {[%emt 0:01:40]} 24. Bxd2 {[%emt 0:00:04]} Nd7 {[%emt 0:00:09]} 25. Rb3 {[%emt 0:03:43]} Ra8 {[%emt 0:00:16]} 26. a3 {[%emt 0:00:22]} Ra6 {[%emt 0:00:57]} 27. Ne4 {[%emt 0:01:21]} f6 {[%emt 0:04:09]} 28. Bf3 {[%emt 0:02:18]} Bf8 {[%emt 0:00:21]} 29. Kf2 {[%emt 0:01:13]} Na8 {[%emt 0:00:09]} 30. Bd1 {[%emt 0:01:14]} Nc7 {[%emt 0:00:28]} 31. Kg3 {[%emt 0:00:51]} Na8 {[%emt 0:00:37]} 32. h4 {[%emt 0:01:17]} Bg7 {[%emt 0:03:23]} 33. Nc3 {[%emt 0:04:05]} Nc7 {[%emt 0:00:27]} 34. Bc1 {[%emt 0:00:34]} Bf8 {[%emt 0:03:49]} 35. Rb1 {[%emt 0:03:07]} Kd8 {[%emt 0:13:15]} 36. Ba4 {[%emt 0:04:30]} Na8 {[%emt 0:00:16]} 37. Bc6 {[%emt 0:01:08]} Kc8 {[%emt 0:03:03]} 38. a4 {[%emt 0:02:20]} Be7 {[%emt 0:03:46]} 39. Bd2 {[%emt 0:01:05]} Kd8 {[%emt 0:11:05]} 40. hxg5 {[%emt 0:02:58]} hxg5 {[%emt 0:00:03]} 41. Rh1 {[%emt 0:31:07]} Nf8 {[%emt 0:30:48]} 42. Rh8 {[%emt 0:01:23]} Nc7 {[%emt 0:01:21]} 43. Ne4 {[%emt 0:02:43]} Ne8 {[%emt 0:03:25]} 44. Bxg5 {[%emt 0:05:57]} fxg5 {[%emt 0:00:19]} 45. Nxg5 {[%emt 0:00:38]} Bxg5 {[%emt 0:05:21]} 46. Rxf8 {[%emt 0:00:13]} Ke7 {[%emt 0:00:24]} 47. Rxe8+ {[%emt 0:00:14]} Kf7 {[%emt 0:00:09]} 48. Rb8 {[%emt 0:00:47]} Ra7 {[%emt 0:01:01]} 49. Rxb6 {[%emt 0:00:15]} Kf6 {[%emt 0:00:40]} 50. Rb2 {[%emt 0:01:09]} Bf4+ {[%emt 0:00:15]} 51. Kf3 {[%emt 0:01:54]} Rh7 {[%emt 0:00:08]} 52. Rb5 {[%emt 0:00:29]} Rh3+ {[%emt 0:00:40]} 53. Kf2 {[%emt 0:00:15]} Rxd3 {[%emt 0:00:17]} 54. Rb7 {[%emt 0:00:53]} e4 {[%emt 0:00:15]} 55. Be8 {[%emt 0:00:45]} Rd2+ {[%emt 0:00:55]} 56. Ke1 {[%emt 0:00:07]} Ra2 {[%emt 0:00:23]} 57. Rf7+ {[%emt 0:00:14]} Ke5 {[%emt 0:00:11]} 58. Rb7 {[%emt 0:01:36]} e3 {[%emt 0:00:45]} 59. Re7+ {[%emt 0:00:18]} Kd4 {[%emt 0:00:09]} 60. f6 {[%emt 0:00:12]} Bg3+ {[%emt 0:01:29]} 61. Kf1 {[%emt 0:00:14]} Rf2+ {[%emt 0:01:09]} 62. Kg1 {[%emt 0:00:21]} Bh2+ {[%emt 0:00:56]} 63. Kh1 {[%emt 0:00:13]} Be5 {[%emt 0:00:09]} 64. Kg1 {[%emt 0:00:37]} Rxf6 {[%emt 0:01:04]} 65. g5 {[%emt 0:00:12]} Rf5 {[%emt 0:01:04]} 66. Bd7 {[%emt 0:01:12]} e2 {[%emt 0:02:44]} 67. Bxf5 {[%emt 0:00:10]} e1=Q+ {[%emt 0:00:09]} 68. Kg2 {[%emt 0:00:14]} Qe2+ {[%emt 0:00:10]} 0-1

[Event "WSTCC-50 2024"]
[Site "Krakow"]
[Date "2024.07.06"]
[Round "5.16"]
[White "Heatlie, Douglas S"]
[Black "Morgan, Jamie"]
[Result "1-0"]
[ECO "A46"]
[WhiteElo "1834"]
[BlackElo "1843"]
[Annotator "NA RC"]
[PlyCount "93"]
[EventDate "2024.07.01"]
[EventType "team-tourn"]
[EventCountry "POL"]
[SourceTitle "playchess.com"]
[Source "ChessBase"]
[SourceQuality "1"]
[TimeControl "40/5400+30:1800+30"]

1. d4 {[%emt 0:00:12]} Nf6 {[%emt 0:00:14]} 2. Nf3 {[%emt 0:00:13]} c5 {[%emt 0:00:07]} 3. c3 {[%emt 0:01:05]} Qc7 {[%emt 0:00:42]} 4. Bg5 {[%emt 0:00:50]} Ne4 {[%emt 0:00:52]} 5. Bh4 {[%emt 0:00:34]} d5 {[%emt 0:00:56]} 6. Nbd2 {[%emt 0:01:11]} Bf5 {[%emt 0:03:48]} 7. Nxe4 {[%emt 0:01:52]} dxe4 {[%emt 0:04:28]} 8. Ne5 {[%emt 0:06:31]} e6 {[%emt 0:11:21]} 9. Qa4+ {[%emt 0:00:39]} Nc6 {[%emt 0:14:11]} 10. Nxc6 {[%emt 0:00:16]} Qxc6 {[%emt 0:01:10]} 11. Qxc6+ {[%emt 0:00:26]} bxc6 {[%emt 0:02:36]} 12. e3 {[%emt 0:00:45]} cxd4 {[%emt 0:01:52]} 13. exd4 {[%emt 0:00:27]} Rb8 {[%emt 0:05:34]} 14. b4 {[%emt 0:02:19]} Bd6 {[%emt 0:05:03]} 15. Bg3 {[%emt 0:01:24]} Kd7 {[%emt 0:07:32]} 16. Be2 {[%emt 0:01:45]} f6 {[%emt 0:07:27]} 17. Kd2 {[%emt 0:10:25]} h6 {[%emt 0:06:28]} 18. Ke3 {[%emt 0:01:22]} Bh7 {[%emt 0:03:14]} 19. Bxd6 {[%emt 0:00:44]} Kxd6 {[%emt 0:00:05]} 20. Rhb1 {[%emt 0:00:26]} Rhd8 {[%emt 0:06:43]} 21. a4 {[%emt 0:02:08]} f5 {[%emt 0:02:18]} 22. f4 {[%emt 0:03:49]} g5 {[%emt 0:00:26]} 23. Rf1 {[%emt 0:00:34]} e5 {[%emt 0:03:30]} 24. dxe5+ {[%emt 0:02:40]} Ke7 {[%emt 0:01:32]} 25. g3 {[%emt 0:00:17]} Rd7 {[%emt 0:01:03]} 26. Rfd1 {[%emt 0:00:30]} Rbd8 {[%emt 0:01:20]} 27. Rxd7+ {[%emt 0:00:11]} Rxd7 {[%emt 0:00:07]} 28. Rd1 {[%emt 0:00:06]} Bg8 {[%emt 0:04:07]} 29. Rxd7+ {[%emt 0:00:36]} Kxd7 {[%emt 0:00:20]} 30. Kd4 {[%emt 0:00:05]} Bb3 {[%emt 0:01:31]} 31. a5 {[%emt 0:00:29]} Ba4 {[%emt 0:00:21]} 32. c4 {[%emt 0:00:51]} Bc2 {[%emt 0:03:52]} 33. h3 {[%emt 0:07:04]} Ba4 {[%emt 0:01:26]} 34. b5 {[%emt 0:02:42]} cxb5 {[%emt 0:00:13]} 35. cxb5 {[%emt 0:00:13]} Bc2 {[%emt 0:00:14]} 36. Bc4 {[%emt 0:01:20]} Kc7 {[%emt 0:00:45]} 37. e6 {[%emt 0:01:18]} Kd6 {[%emt 0:00:47]} 38. Bd5 {[%emt 0:01:59]} Bd3 {[%emt 0:00:09]} 39. b6 {[%emt 0:00:39]} axb6 {[%emt 0:00:30]} 40. axb6 {[%emt 0:00:42]} Bb5 {[%emt 0:00:14]} 41. b7 {[%emt 0:32:33]} Kc7 {[%emt 0:03:19]} 42. fxg5 {[%emt 0:00:00]} hxg5 {[%emt 0:00:28]} 43. h4 {[%emt 0:00:00]} gxh4 {[%emt 0:05:07]} 44. gxh4 {[%emt 0:00:00]} Be8 {[%emt 0:00:43]} 45. Ke3 {[%emt 0:00:00]} Bh5 {[%emt 0:02:10]} 46. Kf4 {[%emt 0:00:00]} Kb8 {[%emt 0:00:32]} 47. Bc6 {[%emt 0:00:00]} 1-0

[Event "WSTCC-50 2024"]
[Site "Krakow"]
[Date "2024.07.06"]
[Round "5.17"]
[White "Homer, Stephen J"]
[Black "Skibbe, Diana"]
[Result "0-1"]
[ECO "E91"]
[WhiteElo "2019"]
[BlackElo "1942"]
[Annotator "ChessBase"]
[PlyCount "108"]
[EventDate "2024.07.01"]
[EventType "team-tourn"]
[EventCountry "POL"]
[SourceTitle "playchess.com"]
[Source "ChessBase"]
[SourceQuality "1"]
[TimeControl "40/5400+30:1800+30"]

1. d4 {[%emt 0:00:08]} Nf6 {[%emt 0:00:17]} 2. c4 {[%emt 0:00:17]} g6 {[%emt 0:00:06]} 3. Nc3 {[%emt 0:02:01]} d6 {[%emt 0:00:35]} 4. e4 {[%emt 0:03:56]} Bg7 {[%emt 0:00:21]} 5. Nf3 {[%emt 0:02:38]} O-O {[%emt 0:00:11]} 6. Be2 {[%emt 0:00:04]} c6 {[%emt 0:08:08]} 7. O-O {[%emt 0:01:56]} Nfd7 {[%emt 0:05:08]} 8. Re1 {[%emt 0:03:48]} Na6 {[%emt 0:01:07]} 9. b3 {[%emt 0:03:45]} c5 {[%emt 0:03:25]} 10. Bb2 {[%emt 0:00:38]} cxd4 {[%emt 0:00:08]} 11. Nxd4 {[%emt 0:00:11]} Ndc5 {[%emt 0:01:43]} 12. Bf1 {[%emt 0:03:02]} Nb4 {[%emt 0:03:24]} 13. Nd5 {[%emt 0:09:47]} Nc6 {[%emt 0:01:51]} 14. Nxc6 {[%emt 0:06:59]} bxc6 {[%emt 0:00:04]} 15. Bxg7 {[%emt 0:00:08]} Kxg7 {[%emt 0:00:03]} 16. Nc3 {[%emt 0:01:19]} f6 {[%emt 0:07:13]} 17. Qd2 {[%emt 0:07:06]} a5 {[%emt 0:00:59]} 18. Re3 {[%emt 0:06:19]} Be6 {[%emt 0:03:27]} 19. f4 {[%emt 0:02:50]} f5 {[%emt 0:10:38]} 20. Qd4+ {[%emt 0:00:30]} Kg8 {[%emt 0:00:15]} 21. e5 {[%emt 0:01:23]} Bf7 {[%emt 0:02:03]} 22. Rh3 {[%emt 0:06:17]} Ne6 {[%emt 0:04:16]} 23. Qf2 {[%emt 0:01:04]} dxe5 {[%emt 0:01:37]} 24. Rd1 {[%emt 0:01:39]} Qc7 {[%emt 0:00:36]} 25. Qh4 {[%emt 0:06:14]} h5 {[%emt 0:00:06]} 26. fxe5 {[%emt 0:01:13]} Rfd8 {[%emt 0:12:16]} 27. Rhd3 {[%emt 0:05:09]} Rxd3 {[%emt 0:02:02]} 28. Rxd3 {[%emt 0:00:03]} Nc5 {[%emt 0:07:17]} 29. Re3 {[%emt 0:02:45]} Rd8 {[%emt 0:00:21]} 30. Qg3 {[%emt 0:02:42]} Ne6 {[%emt 0:01:10]} 31. Rd3 {[%emt 0:01:22]} f4 {[%emt 0:02:47]} 32. Rxd8+ {[%emt 0:00:29]} Qxd8 {[%emt 0:00:07]} 33. Qd3 {[%emt 0:00:06]} Qb8 {[%emt 0:00:32]} 34. Qe4 {[%emt 0:01:53]} Qb4 {[%emt 0:00:16]} 35. Nd1 {[%emt 0:06:07]} Qd2 {[%emt 0:02:24]} 36. Qe2 {[%emt 0:00:18]} Qd4+ {[%emt 0:00:07]} 37. Kh1 {[%emt 0:00:47]} Nc5 {[%emt 0:01:07]} 38. Nf2 {[%emt 0:00:29]} Be6 {[%emt 0:00:12]} 39. Qc2 {[%emt 0:03:48]} Bf5 {[%emt 0:00:09]} 40. Qe2 {[%emt 0:00:09]} Kg7 {[%emt 0:03:40]} 41. h3 {[%emt 0:10:56]} e6 {[%emt 0:06:30]} 42. Kh2 {[%emt 0:03:53]} Ne4 {[%emt 0:02:20]} 43. Nxe4 {[%emt 0:02:09]} Bxe4 {[%emt 0:00:03]} 44. Kh1 {[%emt 0:03:46]} Qxe5 {[%emt 0:08:06]} 45. Qd2 {[%emt 0:00:36]} Kh6 {[%emt 0:03:12]} 46. Be2 {[%emt 0:04:10]} Qf5 {[%emt 0:06:10]} 47. Qc3 {[%emt 0:02:56]} e5 {[%emt 0:00:13]} 48. c5 {[%emt 0:03:30]} Bd5 {[%emt 0:01:24]} 49. Kh2 {[%emt 0:03:35]} Qe4 {[%emt 0:02:18]} 50. Bf3 {[%emt 0:00:12]} Qe3 {[%emt 0:01:53]} 51. Qxa5 {[%emt 0:01:54]} Bxf3 {[%emt 0:00:30]} 52. Qd8 {[%emt 0:00:02]} Bd5 {[%emt 0:02:09]} 53. Qf8+ {[%emt 0:03:46]} Kg5 {[%emt 0:00:32]} 54. h4+ {[%emt 0:01:13]} Kxh4 {[%emt 0:00:36]} 0-1

[Event "WSTCC-50 2024"]
[Site "Krakow"]
[Date "2024.07.06"]
[Round "5.17"]
[White "Bouah, Lyndon"]
[Black "Westphal, Wolfgang"]
[Result "1/2-1/2"]
[ECO "E44"]
[WhiteElo "1996"]
[BlackElo "2172"]
[Annotator "RC"]
[PlyCount "84"]
[EventDate "2024.07.01"]
[EventType "team-tourn"]
[EventCountry "POL"]
[SourceTitle "playchess.com"]
[Source "ChessBase"]
[SourceQuality "1"]
[TimeControl "40/5400+30:1800+30"]

1. d4 {[%emt 0:00:06]} Nf6 {[%emt 0:00:22]} 2. c4 {[%emt 0:00:08]} e6 {[%emt 0:00:07]} 3. Nc3 {[%emt 0:00:22]} Bb4 {[%emt 0:00:06]} 4. e3 {[%emt 0:00:19]} b6 {[%emt 0:01:48]} 5. Nge2 {[%emt 0:01:47]} Bb7 {[%emt 0:01:46]} 6. a3 {[%emt 0:01:22]} Bxc3+ {[%emt 0:00:15]} 7. Nxc3 {[%emt 0:00:09]} O-O {[%emt 0:00:10]} 8. Bd3 {[%emt 0:06:04]} d6 {[%emt 0:04:12]} 9. O-O {[%emt 0:05:22]} Nbd7 {[%emt 0:00:59]} 10. e4 {[%emt 0:10:18]} e5 {[%emt 0:00:13]} 11. d5 {[%emt 0:00:51]} h6 {[%emt 0:02:12]} 12. b4 {[%emt 0:01:54]} a5 {[%emt 0:00:08]} 13. Rb1 {[%emt 0:00:11]} Re8 {[%emt 0:00:30]} 14. g3 {[%emt 0:01:51]} Nf8 {[%emt 0:05:08]} 15. Qe2 {[%emt 0:11:18]} Bc8 {[%emt 0:03:49]} 16. f4 {[%emt 0:03:33]} Bh3 {[%emt 0:00:20]} 17. Rf2 {[%emt 0:01:16]} Ng4 {[%emt 0:06:16]} 18. Rf3 {[%emt 0:01:16]} axb4 {[%emt 0:05:26]} 19. axb4 {[%emt 0:00:13]} Nd7 {[%emt 0:01:04]} 20. Qe1 {[%emt 0:01:55]} f5 {[%emt 0:01:53]} 21. Bf1 {[%emt 0:06:32]} Bxf1 {[%emt 0:00:14]} 22. Qxf1 {[%emt 0:00:34]} fxe4 {[%emt 0:02:29]} 23. Nxe4 {[%emt 0:00:14]} Ra2 {[%emt 0:04:16]} 24. Bb2 {[%emt 0:01:10]} exf4 {[%emt 0:03:46]} 25. Rxf4 {[%emt 0:01:38]} Nge5 {[%emt 0:02:22]} 26. Nc3 {[%emt 0:03:17]} Ra8 {[%emt 0:00:23]} 27. Nb5 {[%emt 0:02:32]} Re7 {[%emt 0:06:21]} 28. Nd4 {[%emt 0:00:38]} Nf8 {[%emt 0:01:12]} 29. Nf5 {[%emt 0:00:53]} Rd7 {[%emt 0:00:22]} 30. Bxe5 {[%emt 0:02:17]} dxe5 {[%emt 0:00:14]} 31. Rg4 {[%emt 0:00:28]} h5 {[%emt 0:09:48]} 32. Re4 {[%emt 0:03:38]} Qf6 {[%emt 0:01:03]} 33. Qh3 {[%emt 0:01:51]} Rf7 {[%emt 0:02:00]} 34. Rf1 {[%emt 0:00:32]} Re8 {[%emt 0:08:44]} 35. Qxh5 {[%emt 0:01:34]} Qg6 {[%emt 0:00:16]} 36. Qh3 {[%emt 0:02:12]} Nh7 {[%emt 0:02:06]} 37. Qg4 {[%emt 0:03:54]} Qxg4 {[%emt 0:01:14]} 38. Rxg4 {[%emt 0:00:01]} Kh8 {[%emt 0:00:26]} 39. Rg6 {[%emt 0:01:08]} Ref8 {[%emt 0:00:38]} 40. Ne3 {[%emt 0:00:52]} Rxf1+ {[%emt 0:00:17]} 41. Nxf1 {[%emt 0:30:02]} Nf6 {[%emt 0:30:18]} 42. Rg5 {[%emt 0:01:14]} b5 {[%emt 0:01:04]} 1/2-1/2

[Event "WSTCC-50 2024"]
[Site "Krakow"]
[Date "2024.07.06"]
[Round "5.18"]
[White "Dettmann, Gerd"]
[Black "Bhawoodien, Shabir Hussain"]
[Result "0-1"]
[ECO "B99"]
[WhiteElo "2121"]
[BlackElo "1990"]
[Annotator "RC"]
[PlyCount "84"]
[EventDate "2024.07.01"]
[EventType "team-tourn"]
[EventCountry "POL"]
[SourceTitle "playchess.com"]
[Source "ChessBase"]
[SourceQuality "1"]
[TimeControl "40/5400+30:1800+30"]

1. Nf3 {[%emt 0:00:02]} c5 {[%emt 0:00:44]} 2. e4 {[%emt 0:00:11]} d6 {[%emt 0:00:11]} 3. d4 {[%emt 0:00:08]} cxd4 {[%emt 0:00:02]} 4. Nxd4 {[%emt 0:00:09]} Nf6 {[%emt 0:00:02]} 5. Nc3 {[%emt 0:00:08]} a6 {[%emt 0:00:22]} 6. Bg5 {[%emt 0:00:39]} e6 {[%emt 0:00:35]} 7. f4 {[%emt 0:02:54]} Be7 {[%emt 0:09:12]} 8. Qf3 {[%emt 0:04:19]} Qc7 {[%emt 0:09:15]} 9. O-O-O {[%emt 0:00:34]} Nbd7 {[%emt 0:00:14]} 10. g4 {[%emt 0:01:08]} h6 {[%emt 0:08:16]} 11. Bh4 {[%emt 0:15:35]} g5 {[%emt 0:00:20]} 12. fxg5 {[%emt 0:07:26]} Ne5 {[%emt 0:00:35]} 13. Qg3 {[%emt 0:13:40]} Nfxg4 {[%emt 0:09:18]} 14. g6 {[%emt 0:09:46]} fxg6 {[%emt 0:12:33]} 15. h3 {[%emt 0:10:50]} g5 {[%emt 0:20:03]} 16. hxg4 {[%emt 0:00:16]} gxh4 {[%emt 0:00:01]} 17. Qg2 {[%emt 0:00:53]} Rg8 {[%emt 0:01:38]} 18. Nf3 {[%emt 0:03:23]} Rxg4 {[%emt 0:08:47]} 19. Qe2 {[%emt 0:00:19]} Nxf3 {[%emt 0:01:51]} 20. Qxf3 {[%emt 0:00:05]} Bg5+ {[%emt 0:00:59]} 21. Kb1 {[%emt 0:00:03]} Rf4 {[%emt 0:04:47]} 22. Qh5+ {[%emt 0:00:30]} Qf7 {[%emt 0:01:13]} 23. Qxf7+ {[%emt 0:00:08]} Rxf7 {[%emt 0:03:51]} 24. Rxd6 {[%emt 0:00:02]} Be7 {[%emt 0:00:57]} 25. Rb6 {[%emt 0:07:13]} Bc5 {[%emt 0:01:05]} 26. Rb3 {[%emt 0:00:03]} b5 {[%emt 0:00:32]} 27. Bh3 {[%emt 0:00:42]} Ke7 {[%emt 0:01:34]} 28. a3 {[%emt 0:02:31]} Bb7 {[%emt 0:00:52]} 29. Bf1 {[%emt 0:02:17]} Rg8 {[%emt 0:01:11]} 30. Bd3 {[%emt 0:00:03]} Rg1+ {[%emt 0:00:09]} 31. Rxg1 {[%emt 0:00:17]} Bxg1 {[%emt 0:00:09]} 32. Ne2 {[%emt 0:00:42]} Bf2 {[%emt 0:01:55]} 33. c4 {[%emt 0:02:11]} h3 {[%emt 0:00:15]} 34. Bc2 {[%emt 0:00:18]} h2 {[%emt 0:00:43]} 35. Rh3 {[%emt 0:00:08]} Bg1 {[%emt 0:00:52]} 36. Rxh6 {[%emt 0:01:06]} Rf2 {[%emt 0:01:01]} 37. Ng3 {[%emt 0:00:38]} Bc6 {[%emt 0:00:25]} 38. cxb5 {[%emt 0:00:43]} axb5 {[%emt 0:00:01]} 39. e5 {[%emt 0:01:47]} Rg2 {[%emt 0:01:17]} 40. Be4 {[%emt 0:00:32]} Bxe4+ {[%emt 0:00:49]} 41. Nxe4 {[%emt 0:30:06]} Bd4 {[%emt 0:30:37]} 42. Rh7+ {[%emt 0:01:04]} Kd8 {[%emt 0:00:00]} 0-1

[Event "WSTCC-50 2024"]
[Site "Krakow"]
[Date "2024.07.06"]
[Round "5.18"]
[White "Wolf, Sylvia"]
[Black "Rasalingam, Haran"]
[Result "0-1"]
[ECO "C02"]
[WhiteElo "1992"]
[BlackElo "1944"]
[Annotator "NA RC"]
[PlyCount "80"]
[EventDate "2024.07.01"]
[EventType "team-tourn"]
[EventCountry "POL"]
[SourceTitle "playchess.com"]
[Source "ChessBase"]
[SourceQuality "1"]
[TimeControl "40/5400+30:1800+30"]

1. e4 {[%emt 0:00:03]} e6 {[%emt 0:00:22]} 2. d4 {[%emt 0:00:02]} d5 {[%emt 0:00:12]} 3. e5 {[%emt 0:00:02]} b6 {[%emt 0:01:01]} 4. Nf3 {[%emt 0:00:42]} Qd7 {[%emt 0:00:24]} 5. Bd3 {[%emt 0:01:10]} Ba6 {[%emt 0:00:52]} 6. O-O {[%emt 0:00:43]} Ne7 {[%emt 0:00:28]} 7. c3 {[%emt 0:05:08]} Nf5 {[%emt 0:04:20]} 8. a3 {[%emt 0:05:38]} c5 {[%emt 0:01:32]} 9. b4 {[%emt 0:00:37]} Bxd3 {[%emt 0:01:07]} 10. Qxd3 {[%emt 0:00:02]} c4 {[%emt 0:12:18]} 11. Qc2 {[%emt 0:01:23]} h6 {[%emt 0:01:28]} 12. Be3 {[%emt 0:04:57]} g5 {[%emt 0:04:36]} 13. h3 {[%emt 0:06:04]} Nc6 {[%emt 0:06:32]} 14. Nbd2 {[%emt 0:06:12]} O-O-O {[%emt 0:13:45]} 15. Nh2 {[%emt 0:10:47]} Be7 {[%emt 0:01:28]} 16. g4 {[%emt 0:04:02]} Nh4 {[%emt 0:03:48]} 17. Nhf3 {[%emt 0:12:46]} Ng6 {[%emt 0:02:53]} 18. Kg2 {[%emt 0:00:18]} Rdf8 {[%emt 0:01:27]} 19. Nh2 {[%emt 0:05:16]} f5 {[%emt 0:01:36]} 20. f3 {[%emt 0:02:05]} Nh4+ {[%emt 0:02:55]} 21. Kg1 {[%emt 0:00:01]} h5 {[%emt 0:00:28]} 22. Bf2 {[%emt 0:03:13]} Ng6 {[%emt 0:03:01]} 23. Be3 {[%emt 0:01:50]} Rh6 {[%emt 0:00:57]} 24. f4 {[%emt 0:01:45]} hxg4 {[%emt 0:01:50]} 25. hxg4 {[%emt 0:00:55]} Rfh8 {[%emt 0:01:00]} 26. Ndf3 {[%emt 0:04:39]} gxf4 {[%emt 0:01:09]} 27. Bc1 {[%emt 0:01:01]} Bh4 {[%emt 0:06:20]} 28. Nxh4 {[%emt 0:02:45]} Rxh4 {[%emt 0:00:21]} 29. Rf2 {[%emt 0:05:55]} Qg7 {[%emt 0:12:32]} 30. gxf5 {[%emt 0:04:41]} Ngxe5+ {[%emt 0:12:18]} 31. Kf1 {[%emt 0:00:02]} Nd3 {[%emt 0:00:45]} 32. Rg2 {[%emt 0:02:40]} Qh7 {[%emt 0:00:22]} 33. Nf3 {[%emt 0:02:43]} Rh1+ {[%emt 0:00:10]} 34. Rg1 {[%emt 0:03:10]} Qxf5 {[%emt 0:00:44]} 35. Qg2 {[%emt 0:00:52]} Qh3 {[%emt 0:00:57]} 36. Bd2 {[%emt 0:01:02]} Ne7 {[%emt 0:00:49]} 37. Qxh3 {[%emt 0:02:11]} R8xh3 {[%emt 0:00:54]} 38. Kg2 {[%emt 0:00:34]} Rxg1+ {[%emt 0:00:16]} 39. Rxg1 {[%emt 0:00:25]} Rg3+ {[%emt 0:00:08]} 40. Kh2 {[%emt 0:00:06]} Rxf3 {[%emt 0:00:25]} 0-1